fUST/lending_fUST_20250302
["ID","MTS","AMOUNT","RATE_DAILY","PERIOD"]
[354990547,1740857473874,-694.01,0.00026441,2]
[354990548,1740857473884,-500.0,0.00026441,2]
[354990549,1740857473894,-500.0,0.00026441,2]
[354990550,1740857473905,-500.0,0.00026441,2]
[354990551,1740857473916,-571.62,0.00026441,2]
[354990552,1740857473926,-217.88112542,0.00026441,2]
[354990553,1740857473936,-500.0,0.00026441,2]
[354990554,1740857473945,-1223.73,0.00026441,2]
[354990555,1740857473955,-500.0,0.00026441,2]
[354990556,1740857473969,-500.0,0.00026441,2]
[354990557,1740857473978,-547.43138639,0.00026441,2]
[354990558,1740857473988,-500.0,0.00026441,2]
[354990559,1740857473997,-500.0,0.00026441,2]
[354990560,1740857474007,-825.25,0.00026441,2]
[354990561,1740857474017,-535.95,0.00026441,2]
[354990562,1740857474027,-507.6,0.00026441,2]
[354990563,1740857474037,-721.54,0.00026441,2]
[354990564,1740857474047,-500.0,0.00026441,2]
[354990565,1740857474057,-500.0,0.00026441,2]
[354990566,1740857474066,-545.57898527,0.00026441,2]
[354990567,1740857474076,-500.0,0.00026441,2]
[354990568,1740857474086,-1722.41,0.00026441,2]
[354990569,1740857474096,-500.0,0.00026441,2]
[354990570,1740857474106,-1553.32,0.00026441,2]
[354990571,1740857474116,-500.0,0.00026441,2]
[354990572,1740857474126,-500.0,0.00026441,2]
[354990573,1740857474136,-655.92,0.00026441,2]
[354990574,1740857474146,-963.38,0.00026441,2]
[354990575,1740857474156,-1698.14,0.00026441,2]
[354990576,1740857474167,-500.0,0.00026441,2]
[354990577,1740857474177,-1092.58,0.00026441,2]
[354990578,1740857474187,-500.0,0.00026441,2]
[354990579,1740857474198,-602.51,0.00026441,2]
[354990580,1740857474211,-1131.4,0.00026441,2]
[354990581,1740857474222,-616.8,0.00026441,2]
[354990582,1740857474232,-500.0,0.00026441,2]
[354990583,1740857474243,-500.0,0.00026441,2]
[354990584,1740857474252,-1120.81,0.00026441,2]
[354990585,1740857474263,-500.0,0.00026441,2]
[354990586,1740857474273,-500.0,0.00026441,2]
[354990587,1740857474284,-500.0,0.00026441,2]
[354990588,1740857474294,-1027.5,0.00026441,2]
[354990589,1740857474305,-500.72,0.00026441,2]
[354990590,1740857474317,-500.0,0.00026441,2]
[354990591,1740857474327,-1804.23,0.00026441,2]
[354990592,1740857474338,-500.0,0.00026441,2]
[354990593,1740857474349,-500.0,0.00026441,2]
[354990594,1740857474361,-604.37,0.00026441,2]
[354990595,1740857474371,-644.13,0.00026441,2]
[354990596,1740857474382,-1201.06,0.00026441,2]
[354990597,1740857474392,-500.0,0.00026441,2]
[354990598,1740857474403,-678.46,0.00026441,2]
[354990599,1740857474413,-1104.24,0.00026441,2]
[354990600,1740857474424,-875.88,0.00026441,2]
[354990601,1740857474435,-500.0,0.00026441,2]
[354990602,1740857474446,-500.44,0.00026441,2]
[354990603,1740857474456,-811.53,0.00026441,2]
[354990604,1740857474471,-1189.34,0.00026441,2]
[354990605,1740857474482,-909.26,0.00026441,2]
[354990606,1740857474493,-1101.03,0.00026441,2]
[354990607,1740857474504,-1065.65,0.00026441,2]
[354990608,1740857474515,-733.72,0.00026441,2]
[354990609,1740857474525,-500.0,0.00026441,2]
[354990610,1740857474536,-500.4,0.00026441,2]
[354990611,1740857474546,-500.0,0.00026441,2]
[354990612,1740857474556,-592.68,0.00026441,2]
[354990613,1740857474567,-1067.56,0.00026441,2]
[354990614,1740857474577,-1975.06,0.00026441,2]
[354990615,1740857474587,-2073.86,0.00026441,2]
[354990616,1740857474598,-500.0,0.00026441,2]
[354990617,1740857474609,-1489.16,0.00026441,2]
[354990618,1740857474620,-500.0,0.00026441,2]
[354990619,1740857474631,-1929.49,0.00026441,2]
[354990620,1740857474641,-500.0,0.00026441,2]
[354990621,1740857474651,-500.0,0.00026441,2]
[354990622,1740857474663,-1843.61,0.00026441,2]
[354990623,1740857474672,-500.0,0.00026441,2]
[354990624,1740857474682,-1470.76,0.00026441,2]
[354990625,1740857474692,-720.84,0.00026441,2]
[354990626,1740857474702,-4165.14,0.00026441,2]
[354990627,1740857474716,-500.0,0.00026441,2]
[354990628,1740857474727,-1402.04,0.00026441,2]
[354990629,1740857474737,-1069.8,0.00026441,2]
[354990630,1740857474748,-500.0,0.00026441,2]
[354990631,1740857474759,-500.0,0.00026441,2]
[354990632,1740857474770,-1832.6,0.00026441,2]
[354990633,1740857474782,-1174.23,0.00026441,2]
[354990634,1740857474794,-500.0,0.00026441,2]
[354990635,1740857474806,-955.78,0.00026441,2]
[354990636,1740857474818,-500.0,0.00026441,2]
[354990637,1740857474830,-603.76,0.00026441,2]
[354990638,1740857474842,-500.0,0.00026441,2]
[354990639,1740857474854,-508.02,0.00026441,2]
[354990640,1740857474866,-501.91,0.00026441,2]
[354990641,1740857474878,-500.0,0.00026441,2]
[354990642,1740857474890,-596.44,0.00026441,2]
[354990643,1740857474901,-500.0,0.00026441,2]
[354990644,1740857474911,-699.09,0.00026441,2]
[354990645,1740857474922,-500.0,0.00026441,2]
[354990646,1740857474932,-500.0,0.00026441,2]
[354990647,1740857474942,-961.56,0.00026441,2]
[354990648,1740857474952,-1285.04,0.00026441,2]
[354990649,1740857474965,-2258.54,0.00026441,2]
[354990650,1740857474975,-1223.59,0.00026441,2]
[354990651,1740857474985,-847.08,0.00026441,2]
[354990652,1740857474995,-500.0,0.00026441,2]
[354990653,1740857475005,-1293.13,0.00026441,2]
[354990654,1740857475015,-308.458914,0.00026441,7]
[354990655,1740857475025,-1067.33,0.00026441,2]
[354990656,1740857475036,-1474.81,0.00026441,2]
[354990657,1740857475046,-308.458921,0.00026441,7]
[354990658,1740857475056,-500.0,0.00026441,2]
[354990659,1740857475066,-30608.01,0.00026441,2]
[354990660,1740857475077,-609.75,0.00026441,2]
[354990661,1740857475088,-500.0,0.00026441,2]
[354990662,1740857475098,-1382.44,0.00026441,2]
[354990663,1740857475110,-251.433184,0.00026441,7]
[354990664,1740857475121,-500.0,0.00026441,2]
[354990665,1740857475132,-500.0,0.00026441,2]
[354990666,1740857475142,-500.0,0.00026441,2]
[354990667,1740857475152,-251.433194,0.00026441,7]
[354990668,1740857475162,-741.75,0.00026441,2]
[354990669,1740857475172,-735.61,0.00026441,2]
[354990670,1740857475182,-519.61,0.00026441,2]
[354990671,1740857475192,-2261.61,0.00026441,2]
[354990672,1740857475201,-575.39,0.00026441,2]
[354990673,1740857475213,-1128.9,0.00026441,2]
[354990674,1740857475222,-500.0,0.00026441,2]
[354990675,1740857475233,-500.0,0.00026441,2]
[354990676,1740857475242,-917.52,0.00026441,2]
[354990677,1740857475253,-1794.6,0.00026441,2]
[354990678,1740857475265,-2224.926881,0.00026441,7]
[354990679,1740857475276,-761.6,0.00026441,2]
[354990680,1740857475287,-2224.926873,0.00026441,7]
[354990681,1740857475298,-500.0,0.00026441,2]
[354990682,1740857475309,-831.09,0.00026441,2]
[354990683,1740857475320,-500.0,0.00026441,2]
[354990684,1740857475331,-868.19,0.00026441,2]
[354990685,1740857475342,-5553.82,0.00026441,2]
[354990686,1740857475352,-500.0,0.00026441,2]
[354990687,1740857475363,-814.970967,0.00026441,7]
[354990688,1740857475372,-500.0,0.00026441,2]
[354990689,1740857475383,-814.970967,0.00026441,7]
[354990690,1740857475394,-500.0,0.00026441,2]
[354990691,1740857475404,-151.796906,0.00026441,7]
[354990692,1740857475414,-151.796903,0.00026441,7]
[354990693,1740857475424,-1238.29,0.00026441,2]
[354990694,1740857475434,-652.4,0.00026441,2]
[354990695,1740857475444,-332.61508385,0.00026441,2]
[354990696,1740857475454,-8724.27,0.00026441,2]
[354990697,1740857475465,-1806.35,0.00026441,2]
[354990698,1740857475475,-835.77,0.00026441,2]
[354990699,1740857475485,-500.0,0.00026441,2]
[354990700,1740857475495,-500.0,0.00026441,2]
[354990701,1740857475505,-500.0,0.00026441,2]
[354990702,1740857475515,-513.01,0.00026441,2]
[354990703,1740857475525,-732.38,0.00026441,2]
[354990704,1740857475535,-2278.27,0.00026441,2]
[354990705,1740857475544,-165357.13980029,0.00026441,2]
[354990706,1740857475816,-265.15001017,0.00024794,2]
[354990707,1740857476721,-35.86773943,0.00024793,2]
[354990708,1740857480183,500.0,0.00024657,2]
[354990709,1740857480924,500.0,0.00024657,2]
[354990711,1740857501517,500.0,0.00024657,2]
[354990712,1740857505316,12582.33,0.00024657,2]
[354990713,1740857512578,500.0,0.00024657,2]
[354990714,1740857522635,5161.12,0.00024657,2]
[354990716,1740857669838,151.0,0.00025,19]
[354990734,1740858273840,151.0,0.00025,20]
[354990735,1740858355116,-175.33985521,0.00021738,5]
[354990736,1740858355142,-201.451934,0.00022304,2]
[354990737,1740858355162,-207.0315108,0.0002315,2]
[354990738,1740858355184,-159.29,0.00023189,2]
[354990739,1740858355205,-596.36391023,0.00023189,2]
[354990757,1740858429121,-571.02989023,0.00023189,2]
[354990758,1740858429144,-300.0,0.00023198,2]
[354990759,1740858429171,-152.73121077,0.00023199,2]
[354990760,1740858443089,-3101.6489601,0.00023199,2]
[354990761,1740858447068,-345.76604574,0.00023199,2]
[354990762,1740858448092,-471.7411775,0.00023199,2]
[354990763,1740858549316,-300.0,0.00023198,2]
[354990764,1740858549339,-20828.11260589,0.00023199,2]
[354990765,1740858549362,-7096.9067622,0.00023314,2]
[354990766,1740858549384,-1514.56046984,0.00023588,2]
[354990767,1740858549405,-250.0,0.00023605,2]
[354990768,1740858549427,-1226.6667408,0.00023605,2]
[354990769,1740858549448,-476.972393,0.00023688,2]
[354990770,1740858549470,-170.4,0.00023688,2]
[354990771,1740858549491,-3566.4515735,0.00023828,2]
[354990772,1740858551100,-3827.0923342,0.00023828,2]
[354990773,1740858551121,-1432.623,0.00024,2]
[354990774,1740858551143,-1515.45473551,0.00024171,2]
[354990775,1740858569090,-178.48026404,0.00024171,2]
[354990776,1740858569112,-311.51973596,0.0002449,2]
[354990794,1740858632689,-293.5815439,0.00023639,2]
[354990795,1740858632700,-199.025629,0.00023655,2]
[354990796,1740858632710,-495.4249898,0.00024304,2]
[354990797,1740858632719,-292.46657089,0.00024557,2]
[354990798,1740858632729,-268.94309268,0.00024593,2]
[354990799,1740858632739,-948.59,0.00024647,3]
[354990800,1740858632749,-474.29,0.00024647,3]
[354990801,1740858632759,-237.15,0.00024647,3]
[354990802,1740858632769,-300.0,0.00024649,2]
[354990803,1740858632779,-500.0,0.00024656,2]
[354990804,1740858632789,-500.0,0.00024656,2]
[354990805,1740858632800,-500.0,0.00024656,2]
[354990806,1740858632810,-500.0,0.00024656,2]
[354990807,1740858632820,-632.3334337,0.00024656,2]
[354990808,1740858632830,-500.0,0.00024656,2]
[354990809,1740858632840,-498.61430389,0.00024656,2]
[354990810,1740858632850,-500.0,0.00024656,2]
[354990811,1740858632860,-500.0,0.00024656,2]
[354990812,1740858632870,-500.0,0.00024656,2]
[354990813,1740858632880,-500.0,0.00024656,2]
[354990814,1740858632890,-500.0,0.00024656,2]
[354990815,1740858632900,-202.56392172,0.00024656,2]
[354990816,1740858632911,-500.0,0.00024656,2]
[354990817,1740858632921,-500.0,0.00024656,2]
[354990818,1740858632931,-500.0,0.00024656,2]
[354990819,1740858632941,-500.0,0.00024656,2]
[354990820,1740858632950,-500.0,0.00024656,2]
[354990821,1740858632960,-500.0,0.00024656,2]
[354990822,1740858632970,-500.0,0.00024656,2]
[354990823,1740858632980,-500.0,0.00024656,2]
[354990824,1740858632991,-500.0,0.00024656,2]
[354990825,1740858633001,-500.0,0.00024656,2]
[354990826,1740858633011,-500.0,0.00024656,2]
[354990827,1740858633022,-500.0,0.00024656,2]
[354990828,1740858633032,-500.0,0.00024656,2]
[354990829,1740858633042,-500.0,0.00024656,2]
[354990830,1740858633052,-500.0,0.00024656,2]
[354990831,1740858633062,-500.0,0.00024656,2]
[354990832,1740858633072,-500.0,0.00024656,2]
[354990833,1740858633083,-500.0,0.00024656,2]
[354990834,1740858633093,-436.29952025,0.00024656,2]
[354990835,1740858633103,-500.0,0.00024656,2]
[354990836,1740858633113,-500.0,0.00024656,2]
[354990837,1740858633123,-500.0,0.00024656,2]
[354990838,1740858633133,-500.0,0.00024656,2]
[354990839,1740858633143,-500.0,0.00024656,2]
[354990840,1740858633153,-500.0,0.00024656,2]
[354990841,1740858633163,-500.0,0.00024657,2]
[354990842,1740858633173,-500.0,0.00024657,2]
[354990843,1740858633183,-500.0,0.00024657,2]
[354990844,1740858633193,-500.0,0.00024657,2]
[354990845,1740858633204,-500.0,0.00024657,2]
[354990846,1740858633214,-1356.93,0.00024657,2]
[354990847,1740858633228,-500.0,0.00024657,2]
[354990848,1740858633238,-604.9,0.00024657,2]
[354990849,1740858633248,-500.0,0.00024657,2]
[354990850,1740858633258,-500.0,0.00024657,2]
[354990851,1740858633268,-500.0,0.00024657,2]
[354990852,1740858633277,-500.0,0.00024657,2]
[354990853,1740858633287,-500.0,0.00024657,2]
[354990854,1740858633296,-1229.49,0.00024657,2]
[354990855,1740858633306,-500.0,0.00024657,2]
[354990856,1740858633315,-500.0,0.00024657,2]
[354990857,1740858633326,-500.0,0.00024657,2]
[354990858,1740858633336,-1294.44,0.00024657,2]
[354990859,1740858633346,-500.0,0.00024657,2]
[354990860,1740858633357,-859.51,0.00024657,2]
[354990861,1740858633367,-500.0,0.00024657,2]
[354990862,1740858633378,-500.0,0.00024657,2]
[354990863,1740858633388,-500.0,0.00024657,2]
[354990864,1740858633399,-875.13,0.00024657,2]
[354990865,1740858633411,-500.0,0.00024657,2]
[354990866,1740858633422,-500.0,0.00024657,2]
[354990867,1740858633433,-814.68,0.00024657,2]
[354990868,1740858633443,-949.73,0.00024657,2]
[354990869,1740858633453,-500.0,0.00024657,2]
[354990870,1740858633463,-1425.19,0.00024657,2]
[354990871,1740858633473,-872.86,0.00024657,2]
[354990872,1740858633483,-511.33,0.00024657,2]
[354990873,1740858633506,-500.0,0.00024657,2]
[354990874,1740858633517,-681.95,0.00024657,2]
[354990875,1740858633528,-825.78,0.00024657,2]
[354990876,1740858633538,-500.0,0.00024657,2]
[354990877,1740858633548,-500.0,0.00024657,2]
[354990878,1740858633558,-500.0,0.00024657,2]
[354990879,1740858633570,-500.0,0.00024657,2]
[354990880,1740858633581,-500.0,0.00024657,2]
[354990881,1740858633591,-500.0,0.00024657,2]
[354990882,1740858633602,-500.0,0.00024657,2]
[354990883,1740858633612,-500.0,0.00024657,2]
[354990884,1740858633622,-500.0,0.00024657,2]
[354990885,1740858633633,-800.67,0.00024657,2]
[354990886,1740858633643,-500.0,0.00024657,2]
[354990887,1740858633653,-500.0,0.00024657,2]
[354990888,1740858633663,-500.0,0.00024657,2]
[354990889,1740858633674,-500.0,0.00024657,2]
[354990890,1740858633685,-500.0,0.00024657,2]
[354990891,1740858633695,-759.89,0.00024657,2]
[354990892,1740858633705,-500.0,0.00024657,2]
[354990893,1740858633716,-1116.87,0.00024657,2]
[354990894,1740858633727,-503.18568257,0.00024657,2]
[354990895,1740858633739,-500.0,0.00024657,2]
[354990896,1740858633749,-500.0,0.00024657,2]
[354990897,1740858633759,-500.0,0.00024657,2]
[354990898,1740858633769,-601.24,0.00024657,2]
[354990899,1740858633779,-1481.3,0.00024657,2]
[354990900,1740858633789,-500.0,0.00024657,2]
[354990901,1740858633799,-500.0,0.00024657,2]
[354990902,1740858633809,-500.0,0.00024657,2]
[354990903,1740858633819,-500.0,0.00024657,2]
[354990904,1740858633829,-500.0,0.00024657,2]
[354990905,1740858633839,-500.0,0.00024657,2]
[354990906,1740858633848,-540.63,0.00024657,2]
[354990907,1740858633858,-500.0,0.00024657,2]
[354990908,1740858633868,-500.0,0.00024657,2]
[354990909,1740858633878,-500.0,0.00024657,2]
[354990910,1740858633888,-1072.37,0.00024657,2]
[354990911,1740858633898,-513.87068856,0.00024657,2]
[354990912,1740858633908,-802.35,0.00024657,2]
[354990913,1740858633918,-500.0,0.00024657,2]
[354990914,1740858633928,-500.0,0.00024657,2]
[354990915,1740858633937,-1400.57,0.00024657,2]
[354990916,1740858633947,-325.85062304,0.00024657,2]
[354990927,1740858638572,-427.125,0.00022557,2]
[354990950,1740858638946,-702.1649997,0.00022557,2]
[354990952,1740858638955,-711.45,0.00024647,3]
[354990954,1740858638965,-500.0,0.00024656,2]
[354990956,1740858638975,-500.0,0.00024656,2]
[354990957,1740858638985,-500.0,0.00024656,2]
[354990958,1740858638996,-500.0,0.00024656,2]
[354990959,1740858639006,-500.0,0.00024656,2]
[354990960,1740858639015,-500.0,0.00024656,2]
[354990961,1740858639025,-602.54100489,0.00024656,2]
[354990962,1740858639035,-500.0,0.00024656,2]
[354990963,1740858639045,-500.0,0.00024656,2]
[354990964,1740858639054,-500.0,0.00024656,2]
[354990965,1740858639064,-500.0,0.00024656,2]
[354990966,1740858639074,-500.0,0.00024656,2]
[354990967,1740858639084,-500.0,0.00024656,2]
[354990968,1740858639094,-500.0,0.00024656,2]
[354990969,1740858639103,-500.0,0.00024656,2]
[354990970,1740858639113,-500.0,0.00024656,2]
[354990971,1740858639122,-500.0,0.00024656,2]
[354990972,1740858639132,-500.0,0.00024656,2]
[354990973,1740858639142,-500.0,0.00024656,2]
[354990974,1740858639152,-500.0,0.00024656,2]
[354990975,1740858639161,-500.0,0.00024656,2]
[354990976,1740858639171,-500.0,0.00024656,2]
[354990977,1740858639180,-500.0,0.00024656,2]
[354990978,1740858639190,-500.0,0.00024656,2]
[354990979,1740858639200,-500.0,0.00024656,2]
[354990980,1740858639210,-500.0,0.00024656,2]
[354990981,1740858639223,-500.0,0.00024656,2]
[354990982,1740858639234,-500.0,0.00024656,2]
[354990983,1740858639245,-500.0,0.00024656,2]
[354990984,1740858639255,-174.14937696,0.00024657,2]
[354990985,1740858639265,-500.0,0.00024657,2]
[354990986,1740858639274,-500.0,0.00024657,2]
[354990987,1740858639284,-1012.06,0.00024657,2]
[354990988,1740858639293,-644.02,0.00024657,2]
[354990989,1740858639303,-200.0,0.00024657,2]
[354990990,1740858639312,-500.0,0.00024657,2]
[354990991,1740858639321,-500.0,0.00024657,2]
[354990992,1740858639331,-500.0,0.00024657,2]
[354990993,1740858639340,-500.0,0.00024657,2]
[354990994,1740858639349,-559.57,0.00024657,2]
[354990995,1740858639360,-500.0,0.00024657,2]
[354990996,1740858639369,-500.0,0.00024657,2]
[354990997,1740858639379,-500.0,0.00024657,2]
[354990998,1740858639388,-844.97,0.00024657,2]
[354990999,1740858639397,-500.0,0.00024657,2]
[354991000,1740858639407,-500.0,0.00024657,2]
[354991001,1740858639416,-500.0,0.00024657,2]
[354991002,1740858639426,-574.28,0.00024657,2]
[354991003,1740858639435,-500.0,0.00024657,2]
[354991004,1740858639445,-500.0,0.00024657,2]
[354991005,1740858639454,-500.0,0.00024657,2]
[354991006,1740858639464,-761.24,0.00024657,2]
[354991007,1740858639473,-500.0,0.00024657,2]
[354991008,1740858639483,-500.0,0.00024657,2]
[354991009,1740858639493,-500.0,0.00024657,2]
[354991010,1740858639502,-582.36,0.00024657,2]
[354991011,1740858639512,-500.0,0.00024657,2]
[354991012,1740858639522,-500.0,0.00024657,2]
[354991013,1740858639532,-1023.73,0.00024657,2]
[354991014,1740858639542,-670.61,0.00024657,2]
[354991015,1740858639551,-12925.59,0.00024657,2]
[354991016,1740858639560,-500.0,0.00024657,2]
[354991017,1740858639570,-500.0,0.00024657,2]
[354991018,1740858639579,-500.0,0.00024657,2]
[354991019,1740858639589,-585.93,0.00024657,2]
[354991020,1740858639599,-24231.35,0.00024657,2]
[354991021,1740858639608,-500.0,0.00024657,2]
[354991022,1740858639618,-500.0,0.00024657,2]
[354991023,1740858639627,-500.0,0.00024657,2]
[354991024,1740858639636,-500.0,0.00024657,2]
[354991025,1740858639646,-500.0,0.00024657,2]
[354991026,1740858639655,-726.37,0.00024657,2]
[354991027,1740858639666,-500.0,0.00024657,2]
[354991028,1740858639676,-1094.43,0.00024657,2]
[354991029,1740858639685,-500.0,0.00024657,2]
[354991030,1740858639695,-500.0,0.00024657,2]
[354991031,1740858639704,-500.0,0.00024657,2]
[354991032,1740858639715,-500.0,0.00024657,2]
[354991033,1740858639725,-500.0,0.00024657,2]
[354991034,1740858639734,-5410.94,0.00024657,2]
[354991035,1740858639747,-500.0,0.00024657,2]
[354991036,1740858639757,-617.75403216,0.00024657,2]
[354991037,1740858639767,-500.0,0.00024657,2]
[354991038,1740858639777,-1790.44,0.00024657,2]
[354991039,1740858639787,-500.0,0.00024657,2]
[354991040,1740858639797,-500.0,0.00024657,2]
[354991041,1740858639807,-657.95,0.00024657,2]
[354991042,1740858639816,-500.0,0.00024657,2]
[354991043,1740858639826,-893.71,0.00024657,2]
[354991044,1740858639835,-3488.0,0.00024657,2]
[354991045,1740858639845,-500.0,0.00024657,2]
[354991046,1740858639854,-500.0,0.00024657,2]
[354991047,1740858639864,-500.0,0.00024657,2]
[354991048,1740858639874,-500.0,0.00024657,2]
[354991049,1740858639884,-9463.4,0.00024657,2]
[354991050,1740858639894,-1420.73,0.00024657,2]
[354991051,1740858639903,-500.0,0.00024657,2]
[354991052,1740858639913,-500.0,0.00024657,2]
[354991053,1740858639923,-500.0,0.00024657,2]
[354991054,1740858639933,-602.93,0.00024657,2]
[354991055,1740858639942,-500.0,0.00024657,2]
[354991056,1740858639952,-1402.25,0.00024657,2]
[354991057,1740858639961,-500.0,0.00024657,2]
[354991058,1740858639972,-500.0,0.00024657,2]
[354991059,1740858639982,-250.32898851,0.00024657,2]
[354991060,1740858639993,-500.0,0.00024657,2]
[354991061,1740858640003,-500.0,0.00024657,2]
[354991062,1740858640013,-5237.63,0.00024657,2]
[354991063,1740858640023,-970.83,0.00024657,2]
[354991064,1740858640034,-899.3,0.00024657,2]
[354991065,1740858640044,-500.0,0.00024657,2]
[354991066,1740858640054,-500.0,0.00024657,2]
[354991067,1740858640063,-2449.77,0.00024657,2]
[354991068,1740858640073,-500.0,0.00024657,2]
[354991069,1740858640083,-500.0,0.00024657,2]
[354991070,1740858640092,-4396.77,0.00024657,2]
[354991071,1740858640101,-250.80359435,0.00024657,2]
[354991072,1740858640110,-500.0,0.00024657,2]
[354991073,1740858640120,-3112.68,0.00024657,2]
[354991074,1740858640129,-500.0,0.00024657,2]
[354991075,1740858640138,-500.0,0.00024657,2]
[354991076,1740858640147,-1000.0,0.00024657,5]
[354991077,1740858640158,-500.0,0.00024657,2]
[354991078,1740858640167,-500.0,0.00024657,2]
[354991079,1740858640176,-500.0,0.00024657,2]
[354991080,1740858640185,-500.0,0.00024657,2]
[354991081,1740858640195,-500.0,0.00024657,2]
[354991082,1740858640204,-4340.96,0.00024657,2]
[354991083,1740858640214,-500.0,0.00024657,2]
[354991084,1740858640226,-500.0,0.00024657,2]
[354991085,1740858640235,-1088.39,0.00024657,2]
[354991086,1740858640246,-500.0,0.00024657,2]
[354991087,1740858640255,-500.0,0.00024657,2]
[354991088,1740858640265,-2525.31,0.00024657,2]
[354991089,1740858640274,-7864.25,0.00024657,2]
[354991090,1740858640283,-500.0,0.00024657,2]
[354991091,1740858640292,-500.0,0.00024657,2]
[354991092,1740858640302,-500.0,0.00024657,2]
[354991093,1740858640311,-500.0,0.00024657,2]
[354991094,1740858640321,-1037.02,0.00024657,2]
[354991095,1740858640331,-500.0,0.00024657,2]
[354991096,1740858640340,-500.0,0.00024657,2]
[354991097,1740858640350,-500.0,0.00024657,2]
[354991098,1740858640359,-500.0,0.00024657,2]
[354991099,1740858640369,-500.0,0.00024657,2]
[354991100,1740858640378,-500.0,0.00024657,2]
[354991101,1740858640387,-703.67,0.00024657,2]
[354991102,1740858640396,-500.0,0.00024657,2]
[354991103,1740858640406,-2714.35,0.00024657,2]
[354991104,1740858640416,-762.63,0.00024657,2]
[354991105,1740858640425,-500.0,0.00024657,2]
[354991106,1740858640435,-651.29,0.00024657,2]
[354991107,1740858640444,-1430.03,0.00024657,2]
[354991108,1740858640453,-500.0,0.00024657,2]
[354991109,1740858640463,-500.0,0.00024657,2]
[354991110,1740858640473,-500.0,0.00024657,2]
[354991112,1740858640482,-500.0,0.00024657,2]
[354991113,1740858640492,-732.12,0.00024657,2]
[354991114,1740858640502,-7347.84,0.00024657,2]
[354991115,1740858640511,-590.91949038,0.00024657,2]
[354991116,1740858640520,-500.0,0.00024657,2]
[354991117,1740858640530,-528.54,0.00024657,2]
[354991118,1740858640539,-602.49,0.00024657,2]
[354991119,1740858640550,-642.64675626,0.00024657,2]
[354991120,1740858640559,-1910.7,0.00024657,2]
[354991121,1740858640568,-651.81,0.00024657,2]
[354991122,1740858640579,-500.0,0.00024657,2]
[354991123,1740858640588,-145114.8,0.00024657,2]
[354991125,1740858640598,-500.0,0.00024657,2]
[354991126,1740858640608,-500.0,0.00024657,2]
[354991128,1740858640618,-2835.51,0.00024657,2]
[354991130,1740858640627,-1053.43,0.00024657,2]
[354991131,1740858640636,-500.0,0.00024657,2]
[354991132,1740858640646,-500.0,0.00024657,2]
[354991133,1740858640655,-500.0,0.00024657,2]
[354991134,1740858640664,-1191.33,0.00024657,2]
[354991135,1740858640673,-1513.15,0.00024657,2]
[354991136,1740858640684,-528.74505089,0.00024657,2]
[354991137,1740858640694,-2839.02,0.00024657,2]
[354991138,1740858640703,-500.0,0.00024657,2]